Workbook

Sheet 12 Burden Hours Collection
A1: USDA RURAL BUSINESS COOPERATIVE SERVICE
A2: BIOBASED MARKETS PROGRAM: FEDERAL PROCUREMENT AND VOLUNTARY LABELING
A3: INFORMATION COLLECTION BURDEN HOURS
A4: OMB # 0570-NEW
A5: 2024-10-02
A7: Estimated No. of Total Respondents (Applicants) | C7: 520 | J7: Total Estimated Burden for each individual application | K7: =K9/G9 -> $379.01
A8: Average hours per response | C8: =I9/G9 -> 6.5572 | J8: Number of responses per respondent | K8: =G9/C7 -> 5.8019
A9: Gray Columns have automatic formulas. DO NOT input numbers in these columns. | F9: TOTAL | G9: =SUM(G12:G20) -> 3,017 | I9: =SUM(I12:I20) -> 19,783 | K9: =SUM(K12:K20) -> $1,143,473
A10: (A) | B10: (B) | C10: (C) | E10: (D) | F10: (E) | G10: (F) | H10: (G) | I10: (H) | J10: (I) | K10: (J)
A11: Regulation Reference | B11: Title | C11: Form No. (If Any) | D11: % of Respondents Line Item is Applicable To | E11: Estimated # of Respondents | F11: Reports Filed Annually | G11: Total Responses (D) x (E) | H11: Estimated # of Hours Per Response | I11: Estimated Total Hours (F) x (G) | J11: Prof. Wage Rate | K11: Total Cost (H) x (I)
A12: §4270.9(a) | B12: Application | D12: 100% | E12: =D12*$C$7 -> 520 | F12: 2 | G12: =E12*F12 -> 1,040 | H12: 12.00 | I12: =IF((H12*G12)="","",(H12*G12)) -> 12,480 | J12: ='Est Prof Wage Rate'!$G$33 -> $57.80 | K12: =IF((J12*I12)="","",(J12*I12)) -> 721,354
A13: §4270.9(b)(2)(ii), (c)(2), (d) | B13: Biobased Content and Testing | D13: 100% | E13: =D13*$C$7 -> 520 | F13: 2 | G13: =E13*F13 -> 1,040 | H13: 2.00 | I13: =IF((H13*G13)="","",(H13*G13)) -> 2,080 | J13: ='Est Prof Wage Rate'!$G$33 -> $57.80 | K13: =IF((J13*I13)="","",(J13*I13)) -> 120,226
A14: §4270.9 & .14 | B14: Maintaing Records and Notice of Certification | D14: 57% | E14: =D14*$C$7 -> 295 | F14: 1 | G14: =E14*F14 -> 295 | H14: 4.00 | I14: =IF((H14*G14)="","",(H14*G14)) -> 1,180 | J14: ='Est Prof Wage Rate'!$G$33 -> $57.80 | K14: 68,205
A15: §4270.12 | B15: Appeals | D15: 10% | E15: 52 | F15: 1 | G15: 52 | H15: 4.00 | I15: =IF((H15*G15)="","",(H15*G15)) -> 208 | J15: ='Est Prof Wage Rate'!$G$33 -> $57.80 | K15: =IF((J15*I15)="","",(J15*I15)) -> 12,023
A16: §4270.15 | B16: Oversight and Monitoring | D16: 57% | E16: 295 | F16: 2 | G16: 590 | H16: 6.50 | I16: 3,835 | J16: ='Est Prof Wage Rate'!$G$33 -> $57.80 | K16: 221,666

Sheet 13 Burden to Respondent
A1: ='12 Burden Hours Collection'!A1 -> USDA RURAL BUSINESS COOPERATIVE SERVICE
A2: ='12 Burden Hours Collection'!A2 -> BIOBASED MARKETS PROGRAM: FEDERAL PROCUREMENT AND VOLUNTARY LABELING
A3: ESTIMATED TOTAL ANNUAL COST BURDEN TO RESPONDENTS
A4: ='12 Burden Hours Collection'!A4 -> OMB # 0570-NEW
A5: ='12 Burden Hours Collection'!A5 -> 2024-10-02
A7: Gray Columns have automatic formulas. DO NOT input numbers in these columns.
A8: Estimated Annualized Testing Costs
A9: Number of Respondents (Applicants) | B9: 520
A10: # of Applications per Respondents | B10: 2
A11: # of Single Product or Product Family per Application | B11: 1
A12: Estimated # of Products or Product Families for Testing | B12: =B9*B10 -> 1,040
A13: Estimated # of Tests per Prodcuts or Product Families | B13: 1
A14: Total # of Tests | B14: =B12*B13 -> 1,040
A15: Cost per Test | B15: $400
A16: Annualized Factor (over 10yrs @ 3.5% interest) | B16: 0.22148
A17: Annualized Testing Cost | B17: =B14*B15*B16 -> $92,136
A18: Estimated Respondent Labor Costs
A19: Estimated # of Hours per Test | B19: 2
A20: Total Annual Burden Hours - Respondents | B20: =B19*B14 -> 2,080
A21: Labor Cost per Hour | B21: ='Est Prof Wage Rate'!G33 -> $57.80
A22: Total Annualized Labor Costs | B22: =B21*B20 -> $120,226
A23: Total Annualized Cost to Respondents | B23: =B22+B17 -> $212,361

Sheet 14 Annual Cost to Fed Gov Est
A1: ='12 Burden Hours Collection'!A1 -> USDA RURAL BUSINESS COOPERATIVE SERVICE
A2: ='12 Burden Hours Collection'!A2 -> BIOBASED MARKETS PROGRAM: FEDERAL PROCUREMENT AND VOLUNTARY LABELING
A3: ANNUALIZED COST TO THE FEDERAL GOVERNMENT
A4: ='12 Burden Hours Collection'!A4 -> OMB # 0570-NEW
A5: ='12 Burden Hours Collection'!A5 -> 2024-10-02
A7: OPM GS Pay Tables - Table 2023 DCB | C7: https://www.opm.gov/policy-data-oversight/pay-leave/salaries-wages/2023/general-schedule
A8: OPM SES Schedules - Table 2023-ES | C8: Executive Senior Level (opm.gov)
A9: Benefit % (OMB Memo M-08 13) | B9: https://www.whitehouse.gov/wp-content/uploads/legacy_drupal_files/omb/memoranda/2008/m08-13.pdf | K9: 36.25%
A11: Gray & Blue Columns have automatic formulas. DO NOT input numbers in these columns. | G11: Total | H11: =H13+H18+H25 -> 33.00 | I11: =I13+I18+I25 -> $1,059.79 | K11: =SUM(K13:K29) -> $936,596.20 | M11: Contractor 1 | O11: Contractor 2
A12: Staff Position | B12: GS Grade | C12: GS Step | D12: GS Salary | E12: Hourly Rate Calc | F12: Benefits Calc | G12: Total Salary Rate Calc | H12: Hours Required | I12: Cost Subtotals | J12: # of Responses | K12: Total Costs | M12: 583,000 | O12: 1,059,000
A13: Application (Including Biobased Content/Testing) - 1,040 Responses | H13: =SUM(H14:H17) -> 19.00 | I13: =SUM(I14:I17) -> $708.23 | J13: 1,040 | K13: =J13*I13 -> $736,557.84
A14: Contractor 1 | H14: 12.00 | I14: =M14/J13 -> $381.19 | M14: =M12*N14 -> 396,440.00 | N14: 68%
A15: Contractor 2 | H15: 5.00 | I15: =O15/J13 -> $101.83 | O15: =O12*P15 -> 105,900.00 | P15: 10%
A16: Procurement Analyst | B16: 14 | C16: 5 | D16: $157,982 | E16: =(D16/52)/40 -> $75.95 | F16: =E16*$K$9 -> $27.53 | G16: =E16+F16 -> $103.49 | H16: 1.00 | I16: =H16*G16 -> $103.49
A17: Assistant Deputy Administrator | B17: 15 | C17: 5 | D17: $185,824 | E17: =(D17/52)/40 -> $89.34 | F17: =E17*$K$9 -> $32.39 | G17: =E17+F17 -> $121.72 | H17: 1.00 | I17: =H17*G17 -> $121.72
A18: Maintaing Records and Notice of Certification - 295 Responses | H18: =SUM(H19:H20) -> 5.00 | I18: =SUM(I19:I20) -> $143.01 | J18: 295 | K18: =J18*I18 -> $42,188.31
A19: Contractor 1 | H19: 4.00 | I19: =M19/J18 -> $39.53 | M19: =M12*N19 -> 11,660.00 | N19: 2%
A20: Procurement Analyst | B20: 14 | C20: 5 | D20: $157,982 | E20: =(D20/52)/40 -> $75.95 | F20: =E20*$K$9 -> $27.53 | G20: =E20+F20 -> $103.49 | H20: 1.00 | I20: =H20*G20 -> $103.49
A21: Appeals - 52 Responses | H21: =SUM(H22:H24) -> 6.00 | I21: =SUM(I22:I24) -> $669.30 | J21: 52 | K21: =J21*I21 -> $34,803.43
A22: Procurement Analyst | B22: 14 | C22: 5 | D22: $157,982 | E22: =(D22/52)/40 -> $75.95 | F22: =E22*$K$9 -> $27.53 | G22: =E22+F22 -> $103.49 | H22: 4.00 | I22: =H22*G22 -> $413.94
A23: Assistant Deputy Administrator | B23: 15 | C23: 5 | D23: $185,824 | E23: =(D23/52)/40 -> $89.34 | F23: $32.39 | G23: $121.72 | H23: 1.00 | I23: =H23*G23 -> $121.72
A24: Administrator | D24: $204,000 | E24: =(D24/52)/40 -> $98.08 | F24: =E24*$K$9 -> $35.55 | G24: =E24+F24 -> $133.63 | H24: 1.00 | I24: =H24*G24 -> $133.63
A25: Oversight & Monitoring - 590 Responses | H25: =SUM(H26:H28) -> 9.00 | I25: =SUM(I26:I28) -> $208.55 | J25: 590 | K25: =J25*I25 -> $123,046.63
A26: Contractor 1 | H26: 6.00 | I26: =M26/J25 -> $69.17 | M26: =M12*N26 -> 40,810.00 | N26: 7%
A27: Contractor 2 | H27: 2.00 | I27: =O27/J25 -> $35.90 | O27: =O12*P27 -> 21,180.00 | P27: 2%
A28: Procurement Analyst | B28: 14 | C28: 5 | D28: $157,982 | E28: =(D28/52)/40 -> $75.95 | F28: =E28*$K$9 -> $27.53 | G28: =E28+F28 -> $103.49 | H28: 1.00 | I28: =H28*G28 -> $103.49

Sheet Est Prof Wage Rate
A1: ='12 Burden Hours Collection'!A1 -> USDA RURAL BUSINESS COOPERATIVE SERVICE
A2: ='12 Burden Hours Collection'!A2 -> BIOBASED MARKETS PROGRAM: FEDERAL PROCUREMENT AND VOLUNTARY LABELING
A3: ESTIMATED PROFESSIONAL WAGE RATE
A4: ='12 Burden Hours Collection'!A4 -> OMB # 0570-NEW
A5: ='12 Burden Hours Collection'!A5 -> 2024-10-02
A7: Instructions:
A8: 1. Use the U.S. Bureau of Labor Statistics Occupational Emplyment and Wage Statistics Link below to complete Columns A, B, C for the table below.
A9: a. Click the link: | B9: https://www.bls.gov/oes/tables.htm
A10: b. Under the latest Month Year (May 2023) click Occupation Profiles
A11: c. Use the Occupational Titles to choose which professions (A) need to be added to the table below. You can more than one occupation or just one.
A12: d. The code in front of each Occupational Title is the Occupation Code that goes in (B) for the table below.
A13: e. When you click on each Occupational Titles, choose the Mean Hourly Wage to input in (C) for the table below.
A14: 2. Use the U.S. Bureau of Labor Economic News Release, Employer Costs for Employee Compension to complete Column D for the table below.
A15: a. Click the link: | B15: https://www.bls.gov/news.release/ecec.toc.htm
A16: b. Choose "The PDF verison of the news release" link
A17: c. The latest (September 10, 2024) News Release for Employer Costs for Employee Compensation - June 2024 opens in separate tab.
A18: d. On first page, second paragraph use the benefit costs % of: | D18: 29.70%
A19: 3. For each profession fill in the % for (F). The total for the column should be 100%.
A20: a. Note that if there is only one profession then (F) would be 100%.
A22: Gray Columns have automatic formulas. DO NOT input numbers in these columns.
A23: (A) | B23: (B) | C23: (C) | D23: (D) | E23: (E) | F23: (F) | G23: (G)
A24: Profession | B24: Bureau of Labor Occupation Code 1.d | C24: Mean Wage 1.e | D24: Benefits 2 (C) * (2.d) | E24: Total Hourly Wage (C ) + (D) | F24: % Time Spent on Burden | G24: Weighted Hourly Salary (E) * (F)
A25: Management Occupations | B25: 11-0000 | C25: $66.23 | D25: =IF(C25=0,"",(C25*$D$18)) -> $19.67 | E25: =IF(SUM(C25:D25)=0,"",SUM(C25:D25)) -> $85.90 | F25: 50% | G25: =IF(E25="","",(E25*F25)) -> $42.95
A26: Production Occupations | B26: 51-0000 | C26: $22.90 | D26: =IF(C26=0,"",(C26*$D$18)) -> $6.80 | E26: =IF(SUM(C26:D26)=0,"",SUM(C26:D26)) -> $29.70 | F26: 50% | G26: =IF(E26="","",(E26*F26)) -> $14.85
A33: TOTAL | D33: =IF(C33=0,"",(C33*#REF!)) ->  | F33: =SUM(F25:F32) -> 100% | G33: =SUM(G25:G32) -> $57.80

Sheet NA Not Inc in Burden Hours
A1: ='12 Burden Hours Collection'!A1 -> USDA RURAL BUSINESS COOPERATIVE SERVICE
A2: ='12 Burden Hours Collection'!A2 -> BIOBASED MARKETS PROGRAM: FEDERAL PROCUREMENT AND VOLUNTARY LABELING
A3: INFORMATION COLLECTION NOT INCLUDED IN BURDEN HOURS
A4: ='12 Burden Hours Collection'!A4 -> OMB # 0570-NEW
A5: ='12 Burden Hours Collection'!A5 -> 2024-10-02
A7: Gray Columns have automatic formulas. DO NOT input numbers in these columns. | H7: Total Hours and Cost Not Included in Burden Hours: | I7: =SUM(I10:I29) -> 0 | K7: =SUM(K10:K29) -> 0
A8: (A) | B8: (B) | C8: (C) | E8: (D) | F8: (E) | G8: (F) | H8: (G) | I8: (H) | J8: (I) | K8: (J)
A9: NOFO Section | B9: Title | C9: Form No. (If Any) | D9: % of Respondents Line Item is Applicable To | E9: Estimated # of Respondents | F9: Reports Filed Annually | G9: Total Responses (D) x (E) | H9: Estimated # of Hours Per Response | I9: Estimated Total Hours (F) x (G) | J9: Prof. Wage Rate | K9: Total Cost (H) x (I)
A10: Not Applicable For this Package
